[Event "NED-ch U14 Girls 2019"]
[Site "Assen"]
[Date "2019.05.03"]
[Round "6.6"]
[White "Verheij, Dana"]
[Black "Maris, Lauri"]
[Result "0-1"]
[ECO "C53"]
[WhiteElo "1377"]
[BlackElo "1265"]
[Annotator "NA"]
[PlyCount "82"]
[EventDate "2019.04.28"]
[EventType "swiss"]
[EventCountry "NED"]
[SourceTitle "playchess.com"]
[Source "ChessBase"]
[SourceQuality "1"]
[TimeControl "40/5400+30:1800+30"]

1. e4 {[%emt 0:00:00]} e5 {[%emt 0:00:00]} 2. Nf3 {[%emt 0:00:00]} Nc6 {[%emt 0:00:00]} 3. Bc4 {[%emt 0:00:00]} Bc5 {[%emt 0:00:00]} 4. c3 {[%emt 0:00:00]} d6 {[%emt 0:00:26]} 5. d4 {[%emt 0:00:18]} Bb6 {[%emt 0:00:50]} 6. O-O {[%emt 0:00:54]} Bg4 {[%emt 0:00:16]} 7. Be3 {[%emt 0:07:35]} Nf6 {[%emt 0:02:45]} 8. Bd5 {[%emt 0:08:48]} Nxd5 {[%emt 0:04:24]} 9. exd5 {[%emt 0:00:09]} Ne7 {[%emt 0:00:37]} 10. h3 {[%emt 0:00:52]} Bxf3 {[%emt 0:01:55]} 11. Qxf3 {[%emt 0:00:15]} exd4 {[%emt 0:02:12]} 12. cxd4 {[%emt 0:00:41]} O-O {[%emt 0:02:10]} 13. Nc3 {[%emt 0:00:57]} Ng6 {[%emt 0:02:37]} 14. Rad1 {[%emt 0:02:07]} Qd7 {[%emt 0:02:18]} 15. Kh2 {[%emt 0:04:49]} Rfe8 {[%emt 0:07:03]} 16. g4 {[%emt 0:01:22]} Qe7 {[%emt 0:02:45]} 17. g5 {[%emt 0:01:30]} Ba5 {[%emt 0:03:44]} 18. Ne2 {[%emt 0:01:21]} Qe4 {[%emt 0:02:55]} 19. Qg3 {[%emt 0:05:15]} Qxd5 {[%emt 0:03:06]} 20. Nf4 {[%emt 0:11:25]} Nxf4 {[%emt 0:01:35]} 21. Qxf4 {[%emt 0:00:31]} Re4 {[%emt 0:05:53]} 22. Qg3 {[%emt 0:00:27]} Bb6 {[%emt 0:03:50]} 23. h4 {[%emt 0:01:52]} Bxd4 {[%emt 0:07:02]} 24. Bxd4 {[%emt 0:03:52]} Rxd4 {[%emt 0:00:38]} 25. Rxd4 {[%emt 0:02:44]} Qxd4 {[%emt 0:00:31]} 26. h5 {[%emt 0:00:38]} Qe5 {[%emt 0:01:11]} 27. f4 {[%emt 0:00:19]} Qe2+ {[%emt 0:00:17]} 28. Rf2 {[%emt 0:01:15]} Qxh5+ {[%emt 0:00:23]} 29. Kg1 {[%emt 0:00:25]} Re8 {[%emt 0:01:33]} 30. f5 {[%emt 0:07:07]} Re1+ {[%emt 0:02:56]} 31. Rf1 {[%emt 0:00:12]} Rxf1+ {[%emt 0:00:25]} 32. Kxf1 {[%emt 0:00:06]} Qd1+ {[%emt 0:00:37]} 33. Kg2 {[%emt 0:00:25]} Qd5+ {[%emt 0:01:04]} 34. Kg1 {[%emt 0:01:49]} Qxf5 {[%emt 0:03:43]} 35. Qg2 {[%emt 0:03:52]} Qc5+ {[%emt 0:01:57]} 36. Kh2 {[%emt 0:00:49]} Qc6 {[%emt 0:02:01]} 37. Qf2 {[%emt 0:00:43]} Qc5 {[%emt 0:00:45]} 38. Qg2 {[%emt 0:01:51]} c6 {[%emt 0:01:44]} 39. Qd2 {[%emt 0:03:15]} Qe5+ {[%emt 0:00:34]} 40. Kh3 {[%emt 0:01:13]} Qd5 {[%emt 0:03:13]} 41. Qe3 {[%emt 0:30:55]} Qe6+ {[%emt 0:30:10]} 0-1

[Event "NED-ch U14 Girls 2019"]
[Site "Assen"]
[Date "2019.05.04"]
[Round "7.1"]
[White "Huang, Wendy"]
[Black "Morote, Luna"]
[Result "1-0"]
[ECO "B93"]
[WhiteElo "1586"]
[BlackElo "1360"]
[Annotator "NA RC"]
[PlyCount "81"]
[EventDate "2019.04.28"]
[EventType "swiss"]
[EventCountry "NED"]
[SourceTitle "playchess.com"]
[Source "ChessBase"]
[SourceQuality "1"]
[TimeControl "40/5400+30:1800+30"]

1. e4 {[%emt 0:00:00]} c5 {[%emt 0:00:00]} 2. Nf3 {[%emt 0:00:00]} d6 {[%emt 0:00:00]} 3. d4 {[%emt 0:00:00]} cxd4 {[%emt 0:00:00]} 4. Nxd4 {[%emt 0:00:00]} Nf6 {[%emt 0:00:00]} 5. Nc3 {[%emt 0:00:00]} a6 {[%emt 0:00:00]} 6. f4 {[%emt 0:00:08]} e5 {[%emt 0:00:08]} 7. Nf3 {[%emt 0:00:10]} Nbd7 {[%emt 0:00:15]} 8. a4 {[%emt 0:00:18]} Be7 {[%emt 0:00:09]} 9. Bc4 {[%emt 0:00:23]} O-O {[%emt 0:00:26]} 10. O-O {[%emt 0:00:42]} exf4 {[%emt 0:00:39]} 11. Bxf4 {[%emt 0:03:42]} Qc7 {[%emt 0:09:18]} 12. Ba2 {[%emt 0:03:40]} Ne5 {[%emt 0:02:39]} 13. Qd4 {[%emt 0:18:02]} Nc6 {[%emt 0:05:58]} 14. Qd2 {[%emt 0:03:14]} Ne5 {[%emt 0:07:28]} 15. Kh1 {[%emt 0:03:02]} Rd8 {[%emt 0:01:18]} 16. Nd4 {[%emt 0:09:24]} Nc4 {[%emt 0:04:58]} 17. Bxc4 {[%emt 0:07:36]} Qxc4 {[%emt 0:00:46]} 18. Nf5 {[%emt 0:02:07]} Bxf5 {[%emt 0:00:57]} 19. exf5 {[%emt 0:00:06]} Rac8 {[%emt 0:01:21]} 20. Rae1 {[%emt 0:01:41]} Rd7 {[%emt 0:03:00]} 21. Rf2 {[%emt 0:08:18]} h6 {[%emt 0:01:55]} 22. Rfe2 {[%emt 0:01:21]} Bf8 {[%emt 0:01:52]} 23. h3 {[%emt 0:02:06]} Rc5 {[%emt 0:04:58]} 24. g4 {[%emt 0:06:22]} d5 {[%emt 0:03:10]} 25. Be5 {[%emt 0:02:30]} d4 {[%emt 0:07:28]} 26. Bxf6 {[%emt 0:03:05]} gxf6 {[%emt 0:02:13]} 27. Re8 {[%emt 0:03:14]} Rc8 {[%emt 0:02:25]} 28. Ne4 {[%emt 0:02:57]} Kg7 {[%emt 0:04:22]} 29. Ng3 {[%emt 0:03:35]} Qc6+ {[%emt 0:01:55]} 30. Qg2 {[%emt 0:02:59]} Rxe8 {[%emt 0:01:29]} 31. Nh5+ {[%emt 0:01:08]} Kg8 {[%emt 0:04:46]} 32. Rxe8 {[%emt 0:00:47]} Qd6 {[%emt 0:01:02]} 33. Qd2 {[%emt 0:02:07]} d3 {[%emt 0:08:51]} 34. cxd3 {[%emt 0:03:49]} Qc6+ {[%emt 0:01:32]} 35. Kg1 {[%emt 0:01:07]} Qb6+ {[%emt 0:03:18]} 36. Kf1 {[%emt 0:02:49]} Qc6 {[%emt 0:00:58]} 37. Kf2 {[%emt 0:01:58]} Qb6+ {[%emt 0:00:37]} 38. Ke2 {[%emt 0:01:13]} Re7+ {[%emt 0:01:32]} 39. Rxe7 {[%emt 0:00:33]} Bxe7 {[%emt 0:00:09]} 40. Qxh6 {[%emt 0:00:28]} Qxb2+ {[%emt 0:00:23]} 41. Kf3 {[%emt 0:30:25]} 1-0

[Event "NED-ch U14 Girls 2019"]
[Site "Assen"]
[Date "2019.05.04"]
[Round "7.2"]
[White "Den Heijer, Rolinde"]
[Black "Honkoop, Stella"]
[Result "0-1"]
[ECO "B56"]
[WhiteElo "1423"]
[BlackElo "1629"]
[Annotator "NA RC"]
[PlyCount "106"]
[EventDate "2019.04.28"]
[EventType "swiss"]
[EventCountry "NED"]
[SourceTitle "playchess.com"]
[Source "ChessBase"]
[SourceQuality "1"]
[TimeControl "40/5400+30:1800+30"]

1. e4 {[%emt 0:00:00]} c5 {[%emt 0:00:00]} 2. Nf3 {[%emt 0:00:00]} Nc6 {[%emt 0:00:00]} 3. d4 {[%emt 0:00:00]} cxd4 {[%emt 0:00:00]} 4. Nxd4 {[%emt 0:00:00]} Nf6 {[%emt 0:00:00]} 5. Nc3 {[%emt 0:00:12]} d6 {[%emt 0:00:26]} 6. Be3 {[%emt 0:01:42]} e5 {[%emt 0:00:35]} 7. Nb3 {[%emt 0:00:28]} Be7 {[%emt 0:00:15]} 8. f3 {[%emt 0:00:52]} Be6 {[%emt 0:01:54]} 9. Qd2 {[%emt 0:01:05]} a6 {[%emt 0:00:05]} 10. Nd5 {[%emt 0:01:13]} Bxd5 {[%emt 0:04:39]} 11. exd5 {[%emt 0:01:14]} Nb8 {[%emt 0:00:44]} 12. O-O-O {[%emt 0:05:01]} b5 {[%emt 0:00:42]} 13. Na5 {[%emt 0:04:00]} O-O {[%emt 0:03:14]} 14. b4 {[%emt 0:04:04]} Qc8 {[%emt 0:03:29]} 15. Kb1 {[%emt 0:03:49]} Bd8 {[%emt 0:00:47]} 16. Nc6 {[%emt 0:04:32]} Nxc6 {[%emt 0:02:31]} 17. dxc6 {[%emt 0:00:09]} Qxc6 {[%emt 0:00:35]} 18. Qxd6 {[%emt 0:00:18]} Qxd6 {[%emt 0:00:50]} 19. Rxd6 {[%emt 0:00:05]} Be7 {[%emt 0:00:03]} 20. Rc6 {[%emt 0:01:20]} Bxb4 {[%emt 0:00:56]} 21. Bg5 {[%emt 0:01:57]} Nd5 {[%emt 0:05:54]} 22. Kb2 {[%emt 0:02:01]} Rfc8 {[%emt 0:01:02]} 23. Rxc8+ {[%emt 0:00:39]} Rxc8 {[%emt 0:00:01]} 24. Bd3 {[%emt 0:01:18]} Bc3+ {[%emt 0:00:35]} 25. Kb3 {[%emt 0:01:58]} Bd4 {[%emt 0:08:19]} 26. Bd2 {[%emt 0:01:58]} Nc3 {[%emt 0:03:38]} 27. Re1 {[%emt 0:09:37]} a5 {[%emt 0:12:06]} 28. Be3 {[%emt 0:05:08]} a4+ {[%emt 0:01:41]} 29. Ka3 {[%emt 0:06:48]} Bxe3 {[%emt 0:01:53]} 30. Rxe3 {[%emt 0:00:30]} b4+ {[%emt 0:00:07]} 31. Kxb4 {[%emt 0:02:45]} Nd5+ {[%emt 0:00:16]} 32. Kxa4 {[%emt 0:00:19]} Nxe3 {[%emt 0:00:04]} 33. Kb3 {[%emt 0:00:58]} Nxg2 {[%emt 0:00:23]} 34. c4 {[%emt 0:00:51]} Nf4 {[%emt 0:01:15]} 35. Bc2 {[%emt 0:01:46]} Ne6 {[%emt 0:01:05]} 36. Kb4 {[%emt 0:00:49]} Rb8+ {[%emt 0:01:16]} 37. Kc3 {[%emt 0:01:18]} Nc5 {[%emt 0:00:26]} 38. Bd1 {[%emt 0:01:43]} g5 {[%emt 0:00:50]} 39. h3 {[%emt 0:00:36]} h6 {[%emt 0:00:19]} 40. Bc2 {[%emt 0:00:27]} Kg7 {[%emt 0:01:39]} 41. Bf5 {[%emt 0:31:11]} Kf6 {[%emt 0:32:12]} 42. Bc2 {[%emt 0:01:04]} Ke6 {[%emt 0:00:33]} 43. Bb3 {[%emt 0:02:40]} f5 {[%emt 0:00:38]} 44. Bc2 {[%emt 0:01:06]} h5 {[%emt 0:03:19]} 45. Bd1 {[%emt 0:01:02]} e4 {[%emt 0:01:59]} 46. fxe4 {[%emt 0:00:32]} Nxe4+ {[%emt 0:00:07]} 47. Kc2 {[%emt 0:01:55]} g4 {[%emt 0:00:37]} 48. hxg4 {[%emt 0:00:38]} hxg4 {[%emt 0:00:21]} 49. Be2 {[%emt 0:01:36]} g3 {[%emt 0:00:35]} 50. Bf3 {[%emt 0:00:45]} Ke5 {[%emt 0:00:32]} 51. Kd3 {[%emt 0:00:30]} Rd8+ {[%emt 0:40:03]} 52. Ke3 {[%emt 0:01:07]} f4+ {[%emt 0:00:00]} 53. Ke2 {[%emt 0:00:12]} Rd2+ {[%emt 0:00:00]} 0-1

[Event "NED-ch U14 Girls 2019"]
[Site "Assen"]
[Date "2019.05.04"]
[Round "7.3"]
[White "Velasco, Kathleen"]
[Black "Cordes, Jule"]
[Result "1-0"]
[ECO "C54"]
[WhiteElo "1306"]
[BlackElo "1564"]
[Annotator "NA RC"]
[PlyCount "44"]
[EventDate "2019.04.28"]
[EventType "swiss"]
[EventCountry "NED"]
[SourceTitle "playchess.com"]
[Source "ChessBase"]
[SourceQuality "1"]
[TimeControl "40/5400+30:1800+30"]

1. e4 {[%emt 0:00:00]} e5 {[%emt 0:00:00]} 2. Nf3 {[%emt 0:00:00]} Nc6 {[%emt 0:00:00]} 3. Bc4 {[%emt 0:00:00]} Bc5 {[%emt 0:00:00]} 4. c3 {[%emt 0:00:00]} Nf6 {[%emt 0:00:00]} 5. d4 {[%emt 0:00:07]} exd4 {[%emt 0:00:04]} 6. cxd4 {[%emt 0:00:06]} Bb4+ {[%emt 0:00:07]} 7. Nc3 {[%emt 0:00:43]} Nxe4 {[%emt 0:00:48]} 8. O-O {[%emt 0:00:09]} Bxc3 {[%emt 0:01:18]} 9. bxc3 {[%emt 0:00:14]} d5 {[%emt 0:01:18]} 10. Re1 {[%emt 0:00:48]} O-O {[%emt 0:00:41]} 11. Bd3 {[%emt 0:01:38]} Re8 {[%emt 0:04:10]} 12. Qc2 {[%emt 0:00:33]} Nf6 {[%emt 0:01:26]} 13. Bg5 {[%emt 0:01:22]} Rxe1+ {[%emt 0:07:30]} 14. Rxe1 {[%emt 0:00:30]} g6 {[%emt 0:02:31]} 15. Qe2 {[%emt 0:16:07]} Bd7 {[%emt 0:04:14]} 16. Ne5 {[%emt 0:00:23]} Be6 {[%emt 0:01:13]} 17. Qf3 {[%emt 0:03:34]} Kg7 {[%emt 0:03:29]} 18. Bb5 {[%emt 0:00:09]} Bf5 {[%emt 0:06:03]} 19. g4 {[%emt 0:11:06]} Bc8 {[%emt 0:14:34]} 20. Bh6+ {[%emt 0:00:40]} Kg8 {[%emt 0:00:58]} 21. g5 {[%emt 0:00:26]} Nxe5 {[%emt 0:03:46]} 22. Rxe5 {[%emt 0:00:28]} Bd7 {[%emt 0:12:30]} 1-0

[Event "NED-ch U14 Girls 2019"]
[Site "Assen"]
[Date "2019.05.04"]
[Round "7.4"]
[White "Venema, Katja"]
[Black "Jonkman Inza, Amelia Marry"]
[Result "1/2-1/2"]
[ECO "E61"]
[WhiteElo "1166"]
[BlackElo "1132"]
[Annotator "NA RC"]
[PlyCount "127"]
[EventDate "2019.04.28"]
[EventType "swiss"]
[EventCountry "NED"]
[SourceTitle "playchess.com"]
[Source "ChessBase"]
[SourceQuality "1"]
[TimeControl "40/5400+30:1800+30"]

1. d4 {[%emt 0:00:00]} Nf6 {[%emt 0:00:00]} 2. c4 {[%emt 0:00:00]} g6 {[%emt 0:00:00]} 3. Nc3 {[%emt 0:00:37]} Bg7 {[%emt 0:00:39]} 4. Bf4 {[%emt 0:00:40]} d6 {[%emt 0:00:40]} 5. Nf3 {[%emt 0:00:35]} O-O {[%emt 0:01:48]} 6. g3 {[%emt 0:01:01]} Nfd7 {[%emt 0:01:45]} 7. Bg2 {[%emt 0:01:45]} e5 {[%emt 0:01:16]} 8. Bg5 {[%emt 0:01:49]} f6 {[%emt 0:03:38]} 9. Bd2 {[%emt 0:02:24]} Nc6 {[%emt 0:05:41]} 10. d5 {[%emt 0:03:03]} Ne7 {[%emt 0:01:24]} 11. e4 {[%emt 0:01:59]} a5 {[%emt 0:02:29]} 12. Be3 {[%emt 0:05:01]} Nc5 {[%emt 0:03:30]} 13. O-O {[%emt 0:07:50]} Bd7 {[%emt 0:16:02]} 14. Qd2 {[%emt 0:06:13]} Qc8 {[%emt 0:12:59]} 15. Bh6 {[%emt 0:04:55]} Kh8 {[%emt 0:12:34]} 16. Rab1 {[%emt 0:04:36]} Bxh6 {[%emt 0:06:37]} 17. Qxh6 {[%emt 0:56:02]} g5 {[%emt 0:01:40]} 18. h3 {[%emt 0:00:00]} Ng8 {[%emt 0:02:31]} 19. Qh5 {[%emt 0:00:00]} Be8 {[%emt 0:02:26]} 20. Qg4 {[%emt 0:00:00]} Qxg4 {[%emt 0:02:11]} 21. hxg4 {[%emt 0:00:00]} Bd7 {[%emt 0:01:39]} 22. Bh3 {[%emt 0:00:00]} Nh6 {[%emt 0:02:52]} 23. Nh2 {[%emt 0:00:00]} Rab8 {[%emt 0:02:15]} 24. f3 {[%emt 0:00:00]} b5 {[%emt 0:03:08]} 25. b3 {[%emt 0:00:00]} bxc4 {[%emt 0:01:57]} 26. bxc4 {[%emt 0:00:00]} Rb4 {[%emt 0:01:19]} 27. Rxb4 {[%emt 0:00:00]} axb4 {[%emt 0:00:04]} 28. Ne2 {[%emt 0:00:00]} Ra8 {[%emt 0:01:17]} 29. Nc1 {[%emt 0:00:00]} Rb8 {[%emt 0:01:12]} 30. Nb3 {[%emt 0:00:00]} Nxb3 {[%emt 0:00:49]} 31. axb3 {[%emt 0:00:00]} Ra8 {[%emt 0:00:40]} 32. Rb1 {[%emt 0:00:00]} Ra2 {[%emt 0:00:35]} 33. Nf1 {[%emt 0:00:00]} Nf7 {[%emt 0:01:12]} 34. Ne3 {[%emt 0:00:00]} Nd8 {[%emt 0:01:28]} 35. Nd1 {[%emt 0:00:00]} Nb7 {[%emt 0:00:46]} 36. Nb2 {[%emt 0:00:00]} Nc5 {[%emt 0:00:45]} 37. Bg2 {[%emt 0:00:00]} Ra3 {[%emt 0:03:29]} 38. Nd1 {[%emt 0:00:00]} Rxb3 {[%emt 0:00:51]} 39. Rb2 {[%emt 0:00:00]} Rxb2 {[%emt 0:00:42]} 40. Nxb2 {[%emt 0:00:00]} Kg8 {[%emt 0:00:47]} 41. Kf2 {[%emt 0:10:58]} Kf8 {[%emt 0:03:16]} 42. Ke3 {[%emt 0:00:00]} Na6 {[%emt 0:02:22]} 43. Bf1 {[%emt 0:00:00]} Ke8 {[%emt 0:03:52]} 44. Kd2 {[%emt 0:00:00]} c5 {[%emt 0:01:20]} 45. Kc2 {[%emt 0:00:00]} Kd8 {[%emt 0:05:49]} 46. Kb3 {[%emt 0:00:00]} Kc7 {[%emt 0:01:56]} 47. Be2 {[%emt 0:00:00]} Kb6 {[%emt 0:02:58]} 48. Bd1 {[%emt 0:00:00]} Ka5 {[%emt 0:02:48]} 49. Be2 {[%emt 0:00:00]} Be8 {[%emt 0:02:17]} 50. Bd1 {[%emt 0:00:00]} h5 {[%emt 0:01:21]} 51. gxh5 {[%emt 0:00:00]} Bxh5 {[%emt 0:00:36]} 52. g4 {[%emt 0:00:00]} Be8 {[%emt 0:00:40]} 53. Be2 {[%emt 0:00:00]} Nc7 {[%emt 0:01:43]} 54. Bd1 {[%emt 0:00:00]} Na8 {[%emt 0:00:15]} 55. Ka2 {[%emt 0:00:00]} Nb6 {[%emt 0:00:09]} 56. Bc2 {[%emt 0:00:00]} Na4 {[%emt 0:01:36]} 57. Nd1 {[%emt 0:00:00]} Nc3+ {[%emt 0:02:14]} 58. Nxc3 {[%emt 0:00:00]} bxc3 {[%emt 0:00:07]} 59. Ka3 {[%emt 0:00:00]} Bd7 {[%emt 0:00:50]} 60. Bb3 {[%emt 0:00:00]} Ka6 {[%emt 0:01:51]} 61. Bc2 {[%emt 0:00:00]} Ka5 {[%emt 0:01:01]} 62. Bb3 {[%emt 0:00:00]} Bc8 {[%emt 0:01:19]} 63. Bc2 {[%emt 0:00:00]} Ba6 {[%emt 0:00:52]} 64. Kb3 {[%emt 0:42:32]} 1/2-1/2

[Event "NED-ch U14 Girls 2019"]
[Site "Assen"]
[Date "2019.05.04"]
[Round "7.5"]
[White "Maris, Lauri"]
[Black "Yeh, Nora"]
[Result "1-0"]
[ECO "C34"]
[WhiteElo "1265"]
[BlackElo "1529"]
[Annotator "NA RC"]
[PlyCount "155"]
[EventDate "2019.04.28"]
[EventType "swiss"]
[EventCountry "NED"]
[SourceTitle "playchess.com"]
[Source "ChessBase"]
[SourceQuality "1"]
[TimeControl "40/5400+30:1800+30"]

1. e4 {[%emt 0:00:00]} e5 {[%emt 0:00:00]} 2. f4 {[%emt 0:00:00]} exf4 {[%emt 0:00:00]} 3. Nf3 {[%emt 0:00:00]} d6 {[%emt 0:00:00]} 4. d4 {[%emt 0:00:50]} g5 {[%emt 0:00:01]} 5. h3 {[%emt 0:11:34]} Bg7 {[%emt 0:00:17]} 6. c3 {[%emt 0:04:43]} h6 {[%emt 0:01:36]} 7. Bc4 {[%emt 0:01:41]} Nf6 {[%emt 0:01:32]} 8. Nbd2 {[%emt 0:02:22]} O-O {[%emt 0:01:00]} 9. b3 {[%emt 0:02:35]} Nc6 {[%emt 0:02:04]} 10. Bb2 {[%emt 0:00:50]} Re8 {[%emt 0:02:25]} 11. Bd3 {[%emt 0:01:17]} Bf5 {[%emt 0:04:49]} 12. Qc2 {[%emt 0:01:21]} Nh5 {[%emt 0:05:05]} 13. O-O-O {[%emt 0:01:17]} Bg6 {[%emt 0:01:25]} 14. Rhe1 {[%emt 0:02:40]} Re7 {[%emt 0:02:34]} 15. h4 {[%emt 0:02:58]} g4 {[%emt 0:01:33]} 16. Nh2 {[%emt 0:01:21]} g3 {[%emt 0:01:24]} 17. Nhf3 {[%emt 0:00:45]} Qe8 {[%emt 0:02:39]} 18. Ba3 {[%emt 0:03:37]} Rd7 {[%emt 0:02:06]} 19. Rf1 {[%emt 0:05:28]} Nf6 {[%emt 0:04:29]} 20. Rde1 {[%emt 0:01:05]} Ng4 {[%emt 0:02:08]} 21. Re2 {[%emt 0:03:38]} Ne3 {[%emt 0:00:37]} 22. Rxe3 {[%emt 0:01:01]} fxe3 {[%emt 0:00:37]} 23. Nc4 {[%emt 0:00:20]} d5 {[%emt 0:02:33]} 24. exd5 {[%emt 0:00:20]} Rxd5 {[%emt 0:01:17]} 25. Bxg6 {[%emt 0:01:54]} fxg6 {[%emt 0:00:27]} 26. Re1 {[%emt 0:01:12]} h5 {[%emt 0:02:29]} 27. Rxe3 {[%emt 0:05:46]} Qf7 {[%emt 0:03:05]} 28. Ng5 {[%emt 0:05:10]} Qf1+ {[%emt 0:01:10]} 29. Kb2 {[%emt 0:00:40]} Qf2 {[%emt 0:09:57]} 30. Re2 {[%emt 0:01:15]} Qf5 {[%emt 0:03:42]} 31. Qd2 {[%emt 0:02:13]} Rdd8 {[%emt 0:07:29]} 32. Ne3 {[%emt 0:01:15]} Qd7 {[%emt 0:01:27]} 33. Qc2 {[%emt 0:00:30]} Ne7 {[%emt 0:05:36]} 34. Bxe7 {[%emt 0:04:33]} Qxe7 {[%emt 0:00:31]} 35. Qxg6 {[%emt 0:02:50]} Rd6 {[%emt 0:06:20]} 36. Qxh5 {[%emt 0:01:34]} Re8 {[%emt 0:05:03]} 37. Qh7+ {[%emt 0:07:10]} Kf8 {[%emt 0:00:43]} 38. Qf5+ {[%emt 0:00:36]} Bf6 {[%emt 0:03:53]} 39. h5 {[%emt 0:06:14]} Kg8 {[%emt 0:02:38]} 40. Qg6+ {[%emt 0:00:24]} Bg7 {[%emt 0:04:31]} 41. Qh7+ {[%emt 0:31:07]} Kf8 {[%emt 0:30:28]} 42. Qf5+ {[%emt 0:01:11]} Bf6 {[%emt 0:00:59]} 43. h6 {[%emt 0:05:09]} Kg8 {[%emt 0:02:56]} 44. Qg6+ {[%emt 0:00:56]} Bg7 {[%emt 0:04:01]} 45. Qxg7+ {[%emt 0:00:37]} Qxg7 {[%emt 0:00:10]} 46. hxg7 {[%emt 0:00:08]} Rg6 {[%emt 0:01:24]} 47. Nf3 {[%emt 0:00:47]} Rxg7 {[%emt 0:00:19]} 48. Kc2 {[%emt 0:00:40]} Rg6 {[%emt 0:01:11]} 49. Ne5 {[%emt 0:00:50]} Ra6 {[%emt 0:00:52]} 50. Kb2 {[%emt 0:00:22]} Rae6 {[%emt 0:00:00]} 51. N3g4 {[%emt 0:00:00]} Kg7 {[%emt 0:00:00]} 52. Re3 {[%emt 0:00:00]} Rh8 {[%emt 0:00:00]} 53. Rxg3 {[%emt 0:00:00]} Kf8 {[%emt 0:00:00]} 54. Rf3+ {[%emt 0:00:00]} Ke8 {[%emt 0:00:00]} 55. Nf6+ {[%emt 0:00:00]} Kf8 {[%emt 0:00:00]} 56. Nd5+ {[%emt 0:00:00]} Kg7 {[%emt 0:00:00]} 57. Rf7+ {[%emt 0:00:00]} Kh6 {[%emt 0:00:00]} 58. Nxc7 {[%emt 0:00:00]} Rd6 {[%emt 0:00:00]} 59. Rf3 {[%emt 0:00:00]} Kg7 {[%emt 0:00:00]} 60. Nf7 {[%emt 0:00:00]} Rd7 {[%emt 0:00:00]} 61. Ne6+ {[%emt 0:00:00]} Kg8 {[%emt 0:00:00]} 62. Nxh8 {[%emt 0:00:00]} Kxh8 {[%emt 0:00:00]} 63. g4 {[%emt 0:00:00]} Re7 {[%emt 0:00:00]} 64. d5 {[%emt 0:00:00]} Kh7 {[%emt 0:00:00]} 65. g5 {[%emt 0:00:00]} Kg6 {[%emt 0:00:00]} 66. Rf6+ {[%emt 0:00:00]} Kh7 {[%emt 0:00:00]} 67. g6+ {[%emt 0:00:00]} Kh6 {[%emt 0:00:00]} 68. g7+ {[%emt 0:00:00]} Kh7 {[%emt 0:00:00]} 69. Rf8 {[%emt 0:00:00]} Rxg7 {[%emt 0:00:00]} 70. Nxg7 {[%emt 0:00:00]} Kxg7 {[%emt 0:00:00]} 71. Rf1 {[%emt 0:00:00]} b5 {[%emt 0:00:00]} 72. d6 {[%emt 0:00:00]} a5 {[%emt 0:00:00]} 73. d7 {[%emt 0:00:00]} a4 {[%emt 0:00:00]} 74. bxa4 {[%emt 0:00:00]} bxa4 {[%emt 0:00:00]} 75. d8=Q {[%emt 0:00:00]} a3+ {[%emt 0:00:00]} 76. Kxa3 {[%emt 0:00:00]} Kg6 {[%emt 0:00:00]} 77. Qg8+ {[%emt 0:00:00]} Kh5 {[%emt 0:00:00]} 78. Rh1# {[%emt 0:00:00]} 1-0

[Event "NED-ch U14 Girls 2019"]
[Site "Assen"]
[Date "2019.05.04"]
[Round "7.6"]
[White "Mensing, Luana"]
[Black "Verheij, Dana"]
[Result "1-0"]
[ECO "B22"]
[WhiteElo "1549"]
[BlackElo "1377"]
[Annotator "NA RC"]
[PlyCount "63"]
[EventDate "2019.04.28"]
[EventType "swiss"]
[EventCountry "NED"]
[SourceTitle "playchess.com"]
[Source "ChessBase"]
[SourceQuality "1"]
[TimeControl "40/5400+30:1800+30"]

1. e4 {[%emt 0:00:00]} c5 {[%emt 0:00:00]} 2. c3 {[%emt 0:00:00]} d5 {[%emt 0:00:00]} 3. exd5 {[%emt 0:00:00]} Qxd5 {[%emt 0:00:00]} 4. d4 {[%emt 0:00:07]} Nc6 {[%emt 0:00:00]} 5. Nf3 {[%emt 0:00:35]} Bg4 {[%emt 0:00:14]} 6. Be2 {[%emt 0:00:45]} Nf6 {[%emt 0:00:20]} 7. Be3 {[%emt 0:01:55]} e6 {[%emt 0:00:54]} 8. Nbd2 {[%emt 0:06:25]} cxd4 {[%emt 0:05:24]} 9. cxd4 {[%emt 0:00:09]} Be7 {[%emt 0:01:07]} 10. O-O {[%emt 0:05:19]} O-O-O {[%emt 0:09:20]} 11. Qa4 {[%emt 0:01:56]} h5 {[%emt 0:03:28]} 12. Rac1 {[%emt 0:03:24]} Kb8 {[%emt 0:00:36]} 13. Bf4+ {[%emt 0:05:02]} Bd6 {[%emt 0:00:53]} 14. Bxd6+ {[%emt 0:06:45]} Qxd6 {[%emt 0:00:24]} 15. Nc4 {[%emt 0:17:19]} Qf4 {[%emt 0:04:23]} 16. Qb5 {[%emt 0:13:39]} Bxf3 {[%emt 0:12:06]} 17. Bxf3 {[%emt 0:00:10]} Ng4 {[%emt 0:01:32]} 18. Bxg4 {[%emt 0:00:45]} hxg4 {[%emt 0:00:18]} 19. g3 {[%emt 0:01:29]} Qh6 {[%emt 0:11:18]} 20. h4 {[%emt 0:04:49]} Nxd4 {[%emt 0:02:01]} 21. Qe5+ {[%emt 0:05:17]} Ka8 {[%emt 0:00:07]} 22. Kg2 {[%emt 0:00:00]} Nf3 {[%emt 0:09:14]} 23. Qa5 {[%emt 0:01:46]} Kb8 {[%emt 0:04:20]} 24. Nd6 {[%emt 0:08:26]} Rd7 {[%emt 0:17:04]} 25. Qc5 {[%emt 0:00:37]} a6 {[%emt 0:01:06]} 26. Nc8 {[%emt 0:06:06]} b5 {[%emt 0:05:39]} 27. Qb6+ {[%emt 0:00:16]} Rb7 {[%emt 0:01:15]} 28. Qd6+ {[%emt 0:00:08]} Ka8 {[%emt 0:00:29]} 29. Qxa6+ {[%emt 0:00:05]} Kb8 {[%emt 0:10:58]} 30. Nb6 {[%emt 0:02:35]} Rxb6 {[%emt 0:00:00]} 31. Qxb6+ {[%emt 0:00:05]} Ka8 {[%emt 0:00:00]} 32. Rc7 {[%emt 0:00:16]} 1-0